fUSD/lending_fUSD_20240317
["ID","MTS","AMOUNT","RATE_DAILY","PERIOD"]
[319335315,1710669047210,-71791.63887214,0.00018984,3]
[319335316,1710669093347,1208.37047131,0.0001,2]
[319335317,1710669150931,895.0,0.0001,2]
[319335318,1710669158034,155.0,0.0001,2]
[319335319,1710669165275,315.4059563,0.0001,2]
[319335320,1710669178015,234.23091947,0.0001,2]
[319335321,1710669230915,1461.84631676,0.0001,2]
[319335323,1710669241181,369.14345976,0.0001,2]
[319335324,1710669241776,290.21385363,0.0001,2]
[319335331,1710669273304,1128.68810189,0.0001,2]
[319335333,1710669277702,937.16374656,0.0001,2]
[319335334,1710669283532,200.0,0.0002,120]
[319335336,1710669411035,200.0,0.00023769,120]
[319335337,1710669412947,200.0,0.00022769,120]
[319335338,1710669563330,163.39,0.00010759,2]
[319335339,1710669575067,712.48049614,0.0002,120]
[319335340,1710669664663,150.0,0.0002,120]
[319335344,1710669973462,741.87,0.00011425,2]
[319335345,1710670144876,4694.05034765,0.0001181,2]
[319335352,1710670157082,509.46914664,0.0001181,2]
[319335353,1710670159714,163.39,0.00010643,2]
[319335369,1710670231698,-443.72264003,0.00011817,2]
[319335371,1710670231711,-528.62017312,0.00011817,2]
[319335372,1710670231721,-2054.67362009,0.00011818,2]
[319335373,1710670231730,-160.19798984,0.0001183,2]
[319335375,1710670231740,-1580.589431,0.00013239,2]
[319335376,1710670231750,-150.0,0.00013306,2]
[319335377,1710670231761,-3972.5,0.00013307,2]
[319335378,1710670231770,-1000.0,0.00013317,2]
[319335379,1710670231780,-274.57,0.00013341,2]
[319335380,1710670231790,-173.92,0.00013504,2]
[319335381,1710670231800,-299.99,0.00013504,2]
[319335382,1710670231809,-159.95,0.00013605,2]
[319335383,1710670231820,-741.87,0.00013689,2]
[319335384,1710670231830,-159.95,0.00013694,2]
[319335385,1710670231840,-258.89196398,0.00013697,2]
[319335386,1710670231850,-596.41,0.00013699,2]
[319335387,1710670231859,-1500.0,0.00013699,4]
[319335388,1710670231870,-250.0,0.00013699,2]
[319335389,1710670231879,-180.12,0.00013699,2]
[319335390,1710670231894,-824.8913274,0.000137,2]
[319335391,1710670231904,-159.95,0.00013782,2]
[319335392,1710670231913,-212.98,0.00013785,2]
[319335393,1710670231923,-212.98,0.00013836,2]
[319335394,1710670231932,-159.95,0.00013871,2]
[319335395,1710670231942,-143.45082075,0.00013887,2]
[319335396,1710670231956,-69.52917925,0.00013887,2]
[319335397,1710670231967,-232.56,0.00013895,2]
[319335398,1710670231976,-212.98,0.00013937,2]
[319335399,1710670231986,-159.95,0.0001396,2]
[319335400,1710670231996,-212.98,0.00013988,2]
[319335402,1710670232006,-11327.93828767,0.00014,2]
[319335404,1710670232016,-212.98,0.00014039,2]
[319335406,1710670232025,-159.95,0.00014048,2]
[319335408,1710670232035,-212.98,0.0001409,2]
[319335410,1710670232045,-159.95,0.00014137,2]
[319335413,1710670232055,-212.98,0.00014141,2]
[319335414,1710670232064,-212.98,0.00014191,2]
[319335416,1710670232075,-159.06,0.00014208,2]
[319335418,1710670232085,-159.95,0.00014225,2]
[319335420,1710670232094,-358.08244329,0.00014236,2]
[319335422,1710670232104,-1785.53618659,0.00014237,2]
[319335425,1710670232113,-212.98,0.00014242,2]
[319335427,1710670232123,-212.98,0.00014293,2]
[319335429,1710670232132,-159.95,0.00014314,2]
[319335431,1710670232143,-212.98,0.00014344,2]
[319335433,1710670232152,-212.98,0.00014395,2]
[319335436,1710670232162,-212.98,0.00014445,2]
[319335439,1710670232172,-212.98,0.00014496,2]
[319335442,1710670232181,-212.98,0.00014547,2]
[319335445,1710670232190,-212.98,0.00014598,2]
[319335448,1710670232200,-212.98,0.00014649,2]
[319335451,1710670232210,-203.84,0.00014666,2]
[319335453,1710670232219,-212.98,0.00014699,2]
[319335455,1710670232229,-212.98,0.0001475,2]
[319335458,1710670232238,-1000.0,0.00014982,2]
[319335461,1710670232248,-1059.99382103,0.00014999,2]
[319335464,1710670232257,-155.40320774,0.00015,2]
[319335466,1710670232267,-550.0,0.00015,3]
[319335468,1710670232277,-274.57,0.00015009,2]
[319335470,1710670232286,-2341.79461688,0.00015034,2]
[319335472,1710670232296,-214.08,0.00015068,2]
[319335475,1710670232305,-12640.63543995,0.0001515,2]
[319335477,1710670232317,-256.269,0.0001515,2]
[319335480,1710670232339,-290.53346,0.0001515,2]
[319335488,1710670232404,-583.33361107,0.0001515,2]
[319335492,1710670232442,-23771.39504177,0.0001515,2]
[319335505,1710670237759,-1091.84071827,0.0001515,2]
[319335506,1710670237771,-2868.76597054,0.0001515,2]
[319335507,1710670237786,-2018.32456386,0.0001515,2]
[319335508,1710670237798,-1814.98792548,0.0001515,2]
[319335509,1710670237810,-999.3301068,0.0001515,2]
[319335510,1710670237830,-23341.27096226,0.0001515,2]
[319335511,1710670237839,-6689.5445,0.00015238,2]
[319335512,1710670237849,-454540.4458,0.00015238,2]
[319335513,1710670237859,-172.1839,0.00015238,2]
[319335514,1710670237868,-229.07959584,0.00015328,2]
[319335515,1710670237877,-67969.14034653,0.00015338,2]
[319335516,1710670237887,-500.0,0.00015379,2]
[319335517,1710670237896,-500.0,0.00015379,2]
[319335518,1710670237906,-500.0,0.00015379,2]
[319335519,1710670237915,-500.0,0.00015379,2]
[319335520,1710670237924,-500.0,0.00015379,2]
[319335521,1710670237933,-500.0,0.00015379,2]
[319335522,1710670237943,-500.0,0.00015379,2]
[319335523,1710670237951,-500.0,0.00015379,2]
[319335524,1710670237960,-500.0,0.00015379,2]
[319335525,1710670237970,-500.0,0.00015379,2]
[319335526,1710670237979,-500.0,0.00015379,2]
[319335527,1710670237988,-500.0,0.00015379,2]
[319335528,1710670237998,-500.0,0.00015379,2]
[319335529,1710670238007,-500.0,0.00015379,2]
[319335530,1710670238016,-500.0,0.00015379,2]
[319335531,1710670238025,-500.0,0.00015379,2]
[319335532,1710670238035,-500.0,0.00015379,2]
[319335533,1710670238044,-500.0,0.00015379,2]
[319335534,1710670238053,-417.85319982,0.00015379,2]
[319335535,1710670238062,-500.0,0.00015379,2]
[319335536,1710670238071,-500.0,0.00015379,2]
[319335537,1710670238083,-500.0,0.00015379,2]
[319335538,1710670238092,-500.0,0.00015379,2]
[319335539,1710670238101,-500.0,0.00015379,2]
[319335540,1710670238111,-500.0,0.00015379,2]
[319335541,1710670238121,-285.86945616,0.00015379,2]
[319335542,1710670238130,-500.0,0.00015379,2]
[319335543,1710670238139,-500.0,0.00015379,2]
[319335544,1710670238148,-500.0,0.00015379,2]
[319335545,1710670238157,-500.0,0.00015379,2]
[319335546,1710670238167,-500.0,0.00015379,2]
[319335548,1710670238176,-500.0,0.00015379,2]
[319335550,1710670238185,-500.0,0.00015379,2]
[319335551,1710670238198,-500.0,0.00015379,2]
[319335552,1710670238208,-500.0,0.00015379,2]
[319335553,1710670238218,-290.72821266,0.00015379,2]
[319335554,1710670238227,-500.0,0.00015379,2]
[319335555,1710670238237,-444.25692229,0.00015379,2]
[319335556,1710670238246,-500.0,0.00015379,2]
[319335557,1710670238255,-526.0639615,0.00015379,2]
[319335558,1710670238264,-500.0,0.00015379,2]
[319335559,1710670238273,-500.0,0.00015379,2]
[319335560,1710670238283,-519.64333275,0.00015379,2]
[319335561,1710670238292,-500.0,0.00015379,2]
[319335562,1710670238303,-500.0,0.00015379,2]
[319335563,1710670238313,-500.0,0.00015379,2]
[319335564,1710670238323,-500.0,0.00015379,2]
[319335565,1710670238337,-500.0,0.00015379,2]
[319335566,1710670238348,-500.0,0.00015379,2]
[319335567,1710670238358,-500.0,0.00015379,2]
[319335568,1710670238368,-524.47,0.00015379,2]
[319335569,1710670238377,-8454.8677,0.0001538,2]
[319335570,1710670238386,-8210.2573,0.0001538,2]
[319335571,1710670238395,-100000.0,0.0001538,2]
[319335572,1710670238406,-500.0,0.00015399,2]
[319335573,1710670238415,-500.0,0.00015399,2]
[319335574,1710670238425,-242.39,0.00015399,2]
[319335575,1710670238435,-566.44,0.00015399,2]
[319335576,1710670238444,-500.0,0.00015399,2]
[319335577,1710670238455,-500.0,0.00015399,2]
[319335578,1710670238464,-500.0,0.00015399,2]
[319335579,1710670238476,-500.0,0.00015399,2]
[319335580,1710670238486,-500.0,0.00015399,2]
[319335581,1710670238495,-500.0,0.00015399,2]
[319335582,1710670238505,-500.0,0.00015399,2]
[319335583,1710670238515,-500.0,0.00015399,2]
[319335584,1710670238524,-500.0,0.00015399,2]
[319335585,1710670238533,-500.0,0.00015399,2]
[319335586,1710670238542,-500.0,0.00015399,2]
[319335587,1710670238553,-500.0,0.00015399,2]
[319335588,1710670238562,-500.0,0.00015399,2]
[319335589,1710670238572,-500.0,0.00015399,2]
[319335590,1710670238584,-500.0,0.00015399,2]
[319335591,1710670238593,-500.0,0.00015399,2]
[319335592,1710670238602,-500.0,0.00015399,2]
[319335593,1710670238612,-500.0,0.00015399,2]
[319335594,1710670238621,-500.0,0.00015399,2]
[319335595,1710670238631,-500.0,0.00015399,2]
[319335596,1710670238641,-500.0,0.00015399,2]
[319335597,1710670238650,-500.0,0.00015399,2]
[319335598,1710670238659,-500.0,0.00015399,2]
[319335599,1710670238669,-500.0,0.00015399,2]
[319335600,1710670238678,-500.0,0.00015399,2]
[319335601,1710670238688,-500.0,0.00015399,2]
[319335602,1710670238697,-500.0,0.00015399,2]
[319335603,1710670238706,-500.0,0.00015399,2]
[319335604,1710670238716,-500.0,0.00015399,2]
[319335605,1710670238726,-525.30647987,0.00015399,2]
[319335606,1710670238736,-500.0,0.00015399,2]
[319335607,1710670238745,-500.0,0.00015399,2]
[319335608,1710670238755,-500.0,0.00015399,2]
[319335609,1710670238765,-500.0,0.00015399,2]
[319335610,1710670238774,-500.0,0.00015399,2]
[319335611,1710670238783,-500.0,0.00015399,2]
[319335612,1710670238792,-500.0,0.00015399,2]
[319335613,1710670238802,-347.99708882,0.00015399,2]
[319335614,1710670238811,-509.16372037,0.00015399,2]
[319335615,1710670238821,-500.0,0.00015399,2]
[319335616,1710670238834,-500.0,0.00015399,2]
[319335617,1710670238844,-500.0,0.00015399,2]
[319335618,1710670238853,-500.0,0.00015399,2]
[319335619,1710670238863,-500.0,0.00015399,2]
[319335620,1710670238873,-500.0,0.00015399,2]
[319335621,1710670238882,-607.965387,0.00015399,2]
[319335622,1710670238891,-2000.0,0.00015399,2]
[319335623,1710670238900,-2000.0,0.00015399,2]
[319335624,1710670238910,-500.0,0.00015399,2]
[319335625,1710670238919,-2000.0,0.00015399,2]
[319335626,1710670238928,-500.50555254,0.00015399,2]
[319335627,1710670238937,-2000.0,0.00015399,2]
[319335628,1710670238946,-500.0,0.00015399,2]
[319335629,1710670238956,-500.0,0.00015399,2]
[319335630,1710670238965,-500.0,0.00015399,2]
[319335631,1710670238975,-500.0,0.00015399,2]
[319335632,1710670238984,-624.47390243,0.00015399,2]
[319335633,1710670238993,-500.0,0.00015399,2]
[319335634,1710670239011,-500.0,0.00015399,2]
[319335635,1710670239023,-500.0,0.00015399,2]
[319335636,1710670239044,-500.0,0.00015399,2]
[319335637,1710670239061,-500.0,0.00015399,2]
[319335638,1710670239071,-500.0,0.00015399,2]
[319335639,1710670239082,-500.0,0.00015399,2]
[319335640,1710670239091,-500.0,0.00015399,2]
[319335641,1710670239100,-500.0,0.00015399,2]
[319335642,1710670239109,-500.0,0.00015399,2]
[319335643,1710670239118,-500.0,0.00015399,2]
[319335644,1710670239128,-500.0,0.00015399,2]
[319335645,1710670239137,-500.0,0.00015399,2]
[319335646,1710670239147,-500.69719642,0.00015399,2]
[319335647,1710670239156,-500.0,0.00015399,2]
[319335648,1710670239166,-500.0,0.00015399,2]
[319335649,1710670239175,-500.0,0.00015399,2]
[319335650,1710670239184,-500.0,0.00015399,2]
[319335651,1710670239194,-500.0,0.00015399,2]
[319335652,1710670239203,-500.0,0.00015399,2]
[319335653,1710670239212,-500.0,0.00015399,2]
[319335654,1710670239221,-500.0,0.00015399,2]
[319335655,1710670239230,-500.0,0.00015399,2]
[319335656,1710670239239,-500.0,0.00015399,2]
[319335657,1710670239249,-500.0,0.00015399,2]
[319335658,1710670239258,-500.0,0.00015399,2]
[319335659,1710670239267,-500.0,0.00015399,2]
[319335660,1710670239277,-500.0,0.00015399,2]
[319335661,1710670239286,-500.0,0.00015399,2]
[319335662,1710670239299,-500.0,0.00015399,2]
[319335663,1710670239309,-500.0,0.00015399,2]
[319335664,1710670239318,-500.0,0.00015399,2]
[319335665,1710670239327,-500.0,0.00015399,2]
[319335666,1710670239337,-500.0,0.00015399,2]
[319335667,1710670239346,-500.0,0.00015399,2]
[319335668,1710670239355,-503.38767541,0.00015399,2]
[319335669,1710670239364,-500.0,0.00015399,2]
[319335670,1710670239374,-500.0,0.00015399,2]
[319335672,1710670239384,-500.0,0.00015399,2]
[319335674,1710670239393,-500.0,0.00015399,2]
[319335676,1710670239403,-500.0,0.00015399,2]
[319335678,1710670239412,-500.0,0.00015399,2]
[319335680,1710670239422,-500.0,0.00015399,2]
[319335682,1710670239431,-500.0,0.00015399,2]
[319335683,1710670239440,-500.0,0.00015399,2]
[319335684,1710670239449,-500.0,0.00015399,2]
[319335685,1710670239459,-500.0,0.00015399,2]
[319335686,1710670239468,-514.71866615,0.00015399,2]
[319335687,1710670239480,-500.0,0.00015399,2]
[319335688,1710670239489,-500.0,0.00015399,2]
[319335689,1710670239499,-500.0,0.00015399,2]
[319335690,1710670239508,-444.46908676,0.00015399,2]
[319335691,1710670239517,-469.71910369,0.00015399,2]
[319335692,1710670239526,-500.0,0.00015399,2]
[319335693,1710670239535,-500.0,0.00015399,2]
[319335694,1710670239545,-500.0,0.00015399,2]
[319335695,1710670239556,-322.17872411,0.00015399,2]
[319335696,1710670239566,-1360.82,0.00015399,2]
[319335697,1710670239575,-1360.82,0.00015399,2]
[319335698,1710670239585,-1360.82,0.00015399,2]
[319335699,1710670239595,-1360.82,0.00015399,2]
[319335700,1710670239604,-500.0,0.00015399,2]
[319335701,1710670239614,-500.0,0.00015399,2]
[319335702,1710670239623,-606.26,0.00015399,2]
[319335703,1710670239632,-500.0,0.00015399,2]
[319335704,1710670239642,-500.0,0.00015399,2]
[319335705,1710670239651,-500.0,0.00015399,2]
[319335706,1710670239660,-500.0,0.00015399,2]
[319335707,1710670239669,-306.43431373,0.00015399,2]
[319335708,1710670239678,-634.79983045,0.00015399,2]
[319335709,1710670239688,-611.36334147,0.00015399,2]
[319335710,1710670239697,-500.0,0.00015399,2]
[319335711,1710670239706,-392.3,0.00015399,2]
[319335712,1710670239716,-500.0,0.00015399,2]
[319335713,1710670239726,-500.0,0.00015399,2]
[319335714,1710670239736,-500.0,0.00015399,2]
[319335715,1710670239745,-500.0,0.00015399,2]
[319335716,1710670239755,-500.0,0.00015399,2]
[319335717,1710670239764,-500.0,0.00015399,2]
[319335718,1710670239774,-500.0,0.00015399,2]
[319335719,1710670239783,-500.0,0.00015399,2]
[319335720,1710670239792,-175.48281322,0.00015399,2]
[319335721,1710670239802,-500.0,0.00015399,2]
[319335722,1710670239812,-500.0,0.00015399,2]
[319335723,1710670239822,-500.0,0.00015399,2]
[319335724,1710670239833,-500.0,0.00015399,2]
[319335725,1710670239842,-500.0,0.00015399,2]
[319335726,1710670239851,-500.0,0.00015399,2]
[319335727,1710670239861,-500.0,0.00015399,2]
[319335728,1710670239871,-500.0,0.00015399,2]
[319335729,1710670239881,-500.0,0.00015399,2]
[319335730,1710670239890,-500.0,0.00015399,2]
[319335731,1710670239899,-500.0,0.00015399,2]
[319335732,1710670239909,-500.0,0.00015399,2]
[319335733,1710670239920,-500.0,0.00015399,2]
[319335734,1710670239930,-181.42,0.00015399,2]
[319335735,1710670239940,-500.0,0.00015399,2]
[319335736,1710670239949,-500.0,0.00015399,2]
[319335737,1710670239959,-500.0,0.00015399,2]
[319335738,1710670239968,-500.0,0.00015399,2]
[319335739,1710670239977,-500.0,0.00015399,2]
[319335740,1710670239986,-500.0,0.00015399,2]
[319335741,1710670239995,-500.0,0.00015399,2]
[319335742,1710670240005,-500.0,0.00015399,2]
[319335743,1710670240014,-556.26,0.00015399,2]
[319335744,1710670240023,-556.26,0.00015399,2]
[319335745,1710670240033,-556.26,0.00015399,2]
[319335746,1710670240042,-556.26,0.00015399,2]
[319335747,1710670240051,-500.0,0.00015399,2]
[319335748,1710670240060,-500.0,0.00015399,2]
[319335749,1710670240069,-396.02044485,0.00015399,2]
[319335750,1710670240079,-256.68307008,0.00015399,2]
[319335751,1710670240089,-500.0,0.00015399,2]
[319335753,1710670240098,-358.3,0.00015399,2]
[319335755,1710670240107,-3148.89,0.00015399,2]
[319335756,1710670240116,-3148.89,0.00015399,2]
[319335757,1710670240125,-3148.89,0.00015399,2]
[319335758,1710670240134,-3148.89,0.00015399,2]
[319335759,1710670240143,-3904.45,0.00015399,2]
[319335760,1710670240152,-3904.45,0.00015399,2]
[319335761,1710670240161,-3904.45,0.00015399,2]
[319335762,1710670240170,-3904.45,0.00015399,2]
[319335763,1710670240179,-867.76,0.00015399,2]
[319335764,1710670240188,-867.76,0.00015399,2]
[319335765,1710670240197,-867.76,0.00015399,2]
[319335766,1710670240207,-867.76,0.00015399,2]
[319335767,1710670240216,-587.55,0.00015399,2]
[319335768,1710670240225,-587.55,0.00015399,2]
[319335769,1710670240235,-587.55,0.00015399,2]
[319335770,1710670240244,-587.55,0.00015399,2]
[319335771,1710670240253,-500.0,0.00015399,2]
[319335772,1710670240262,-500.0,0.00015399,2]
[319335773,1710670240272,-500.0,0.00015399,2]
[319335774,1710670240281,-500.0,0.00015399,2]
[319335775,1710670240290,-501.24106888,0.00015399,2]
[319335776,1710670240300,-505.37827617,0.00015399,2]
[319335777,1710670240310,-500.0,0.00015399,2]
[319335778,1710670240319,-500.0,0.00015399,2]
[319335779,1710670240329,-500.0,0.00015399,2]
[319335780,1710670240338,-500.0,0.00015399,2]
[319335781,1710670240346,-407.31,0.00015399,2]
[319335782,1710670240355,-500.0,0.00015399,2]
[319335783,1710670240365,-393.55204623,0.00015399,2]
[319335784,1710670240374,-509.29881812,0.00015399,2]
[319335785,1710670240383,-519.08870473,0.00015399,2]
[319335786,1710670240393,-500.0,0.00015399,2]
[319335787,1710670240402,-184812.5185238,0.000154,5]
[319335788,1710670240412,-155.0,0.000155,2]
[319335789,1710670240422,-150.31185536,0.00015531,2]
[319335790,1710670240432,-4684.34477445,0.00015631,2]
[319335791,1710670240442,-167.0,0.00015831,2]
[319335792,1710670240452,-4684.34477441,0.00015928,2]
[319335793,1710670240463,-741.87,0.00015953,2]
[319335794,1710670240476,-643.0,0.00016,2]
[319335795,1710670240485,-643.24708674,0.00016,2]
[319335796,1710670240494,-1400.0,0.00016045,2]
[319335797,1710670240505,-4684.34477441,0.00016225,2]
[319335798,1710670240515,-2000.0,0.000164,2]
[319335799,1710670240525,-500.0,0.00016438,2]
[319335800,1710670240534,-314.38152941,0.00016438,2]
[319335801,1710670240544,-500.0,0.00016438,2]
[319335802,1710670240554,-4000.0,0.00016438,2]
[319335803,1710670240564,-214.08,0.00016438,2]
[319335804,1710670240574,-167.0,0.00016484,2]
[319335805,1710670240586,-2334.8623687,0.000165,2]
[319335806,1710670240595,-4684.34477441,0.00016523,2]
[319335807,1710670240604,-500.0,0.000166,2]
[319335808,1710670240613,-1000.0,0.00016647,2]
[319335809,1710670240623,-274.57,0.00016676,2]
[319335810,1710670240633,-170.41,0.00016712,2]
[319335811,1710670240644,-4684.34477441,0.0001682,2]
[319335812,1710670240653,-500.0,0.00016986,2]
[319335813,1710670240663,-600.0,0.00017,3]
[319335814,1710670240672,-4684.34477441,0.00017117,2]
[319335815,1710670240682,-167.0,0.00017137,2]
[319335816,1710670240691,-600.0,0.000172,2]
[319335817,1710670240701,-1363.80084106,0.00017212,2]
[319335818,1710670240710,-1363.80084106,0.0001724,2]
[319335819,1710670240720,-163.86829635,0.00017262,2]
[319335820,1710670240730,-174.00139986,0.00017282,2]
[319335821,1710670240740,-215.5079736,0.00017288,2]
[319335822,1710670240749,-151.16603037,0.00017291,2]
[319335823,1710670240759,-1363.80084106,0.00017294,2]
[319335824,1710670240770,-154.45832825,0.00017395,2]
[319335825,1710670240780,-161.60434798,0.00017397,2]
[319335826,1710670240789,-162.87031633,0.00017401,2]
[319335827,1710670240800,-155.0817669,0.0001741,2]
[319335828,1710670240810,-4684.34477441,0.00017414,2]
[319335829,1710670240821,-152.64766202,0.00017459,2]
[319335830,1710670240832,-1023.45327489,0.00017496,2]
[319335831,1710670240841,-500.0,0.00017498,2]
[319335832,1710670240851,-264.04524603,0.000175,2]
[319335833,1710670240860,-2500.0,0.000175,2]
[319335834,1710670240870,-1023.45327489,0.0001751,2]
[319335835,1710670240879,-500.0,0.00017526,2]
[319335836,1710670240889,-500.0,0.00017534,2]
[319335837,1710670240898,-1023.45327489,0.00017556,2]
[319335838,1710670240908,-175.58196687,0.00017556,2]
[319335839,1710670240918,-215.5079736,0.00017621,2]
[319335840,1710670240927,-162.65349022,0.00017629,2]
[319335841,1710670240936,-264.04524603,0.00017647,2]
[319335842,1710670240945,-151.16603037,0.0001765,2]
[319335843,1710670240954,-163.86829635,0.00017676,2]
[319335844,1710670240963,-500.0,0.00017696,2]
[319335845,1710670240974,-4684.34477441,0.00017711,2]
[319335846,1710670240984,-1023.45327489,0.00017738,2]
[319335847,1710670240996,-1363.80084106,0.00017741,2]
[319335848,1710670241006,-167.0,0.00017791,2]
[319335849,1710670241017,-163.68,0.00017808,10]
[319335850,1710670241027,-163.86829635,0.00017881,2]
[319335851,1710670241038,-368.65636636,0.00017896,2]
[319335852,1710670241048,-358.39042505,0.00017899,2]
[319335853,1710670241058,-162.87031633,0.00017924,2]
[319335854,1710670241069,-264.04524603,0.00017939,2]
[319335855,1710670241080,-162.65349022,0.00017942,2]
[319335856,1710670241092,-150.91301711,0.00017943,2]
[319335857,1710670241101,-500.0,0.0001797,2]
[319335858,1710670241115,-246.96,0.00017982,2]
[319335859,1710670241126,-500.0,0.00017999,2]
[319335860,1710670241135,-500.0,0.00017999,2]
[319335861,1710670241146,-500.0,0.00017999,2]
[319335862,1710670241155,-500.0,0.00017999,2]
[319335863,1710670241166,-500.0,0.00017999,2]
[319335864,1710670241176,-500.0,0.00017999,2]
[319335865,1710670241392,-2000.0,0.00017999,2]
[319335866,1710670241403,-500.0,0.00017999,2]
[319335867,1710670241412,-286.83914117,0.00017999,2]
[319335868,1710670241422,-500.0,0.00017999,2]
[319335869,1710670241431,-500.0,0.00017999,2]
[319335870,1710670241441,-500.0,0.00017999,2]
[319335871,1710670241451,-500.0,0.00017999,2]
[319335872,1710670241464,-500.0,0.00017999,2]
[319335873,1710670241475,-500.0,0.00017999,2]
[319335874,1710670241485,-1360.82,0.00017999,2]
[319335875,1710670241496,-500.0,0.00017999,2]
[319335876,1710670241506,-500.0,0.00017999,2]
[319335877,1710670241517,-500.0,0.00017999,2]
[319335878,1710670241526,-500.0,0.00017999,2]
[319335879,1710670241537,-500.0,0.00017999,2]
[319335880,1710670241548,-500.0,0.00017999,2]
[319335881,1710670241559,-500.0,0.00017999,2]
[319335882,1710670241570,-556.26,0.00017999,2]
[319335883,1710670241581,-3148.89,0.00017999,2]
[319335884,1710670241590,-3904.45,0.00017999,2]
[319335885,1710670241600,-867.76,0.00017999,2]
[319335886,1710670241609,-587.55,0.00017999,2]
[319335887,1710670241619,-500.0,0.00017999,2]
[319335888,1710670241628,-500.0,0.00017999,2]
[319335889,1710670241638,-164823.0,0.00018,2]
[319335890,1710670241648,-356.4,0.00018,2]
[319335891,1710670241658,-260.49,0.00018,2]
[319335892,1710670241667,-250.0,0.00018,2]
[319335893,1710670241676,-150.0,0.00018,2]
[319335894,1710670241686,-150.0,0.00018,2]
[319335895,1710670241695,-1500.0,0.00018,2]
[319335896,1710670241704,-155.0,0.00018,2]
[319335897,1710670241714,-4684.34477441,0.00018008,2]
[319335898,1710670241723,-163.86829635,0.00018015,2]
[319335899,1710670241732,-189.64750271,0.00018029,2]
[319335900,1710670241741,-368.65636636,0.00018031,2]
[319335901,1710670241751,-155.0817669,0.00018034,2]
[319335902,1710670241760,-264.04524603,0.00018053,2]
[319335903,1710670241770,-166.66666667,0.00018056,2]
[319335904,1710670241780,-166.66666666,0.00018074,2]
[319335905,1710670241789,-500.0,0.00018082,2]
[319335906,1710670241798,-151.16603037,0.00018096,2]
[319335907,1710670241809,-189.64750271,0.00018097,2]
[319335908,1710670241818,-215.5079736,0.000181,2]
[319335909,1710670241827,-264.04524603,0.00018119,2]
[319335910,1710670241838,-165.0,0.00018137,2]
[319335911,1710670241848,-260.49,0.00018137,2]
[319335912,1710670241857,-189.64750271,0.00018142,2]
[319335913,1710670241867,-358.39042504,0.00018149,2]
[319335914,1710670241876,-215.5079736,0.00018163,2]
[319335915,1710670241886,-1363.80084106,0.00018183,2]
[319335916,1710670241895,-189.64750271,0.00018187,2]
[319335917,1710670241905,-741.87,0.00018217,2]
[319335918,1710670241915,-260.49,0.00018274,2]
[319335919,1710670241925,-250.0,0.00018274,2]
[319335920,1710670241935,-189.64750271,0.00018279,2]
[319335921,1710670241944,-264.04524603,0.00018283,2]
[319335922,1710670241953,-152.64766202,0.00018291,2]
[319335923,1710670241964,-189.64750271,0.00018302,2]
[319335924,1710670241975,-1000.0,0.00018311,2]
[319335925,1710670241984,-1023.45327489,0.0001832,2]
[319335926,1710670241996,-162.65349022,0.00018322,2]
[319335927,1710670242007,-150.91301711,0.00018323,2]